bitfinex-derivatives/quotes_SOLF0:USTF0_20250603
["timestamp","ask_amount","ask_price","bid_price","bid_amount"]
[1748917456590,0.04689381,161.06,161.02,6.25001764]
[1748917456887,6.25219381,161.06,161.02,6.25001764]
[1748917457894,6.2056,161.05,161.02,6.25001764]
[1748917458103,0.04689381,161.06,161.03,7.07219854]
[1748917458289,0.04689381,161.06,161.02,7.11571618]
[1748917458594,6.25219381,161.06,161.02,13.32221618]
[1748917458992,6.25219381,161.06,161.02,7.11571618]
[1748917459597,6.25219381,161.06,161.02,13.32211618]
[1748917460198,6.2056,161.05,161.02,7.11571618]
[1748917460400,0.04689381,161.06,161.02,0.04351764]
[1748917461094,6.2063,161.03,161.02,0.04351764]
[1748917463902,6.2058,161.05,161.02,0.04351764]
[1748917464101,0.04689381,161.06,161.02,0.04351764]
[1748917464603,6.2056,161.05,161.02,0.04351764]
[1748917465602,6.2059,161.04,161.02,0.04351764]
[1748917465797,0.04689381,161.06,161.02,0.04351764]
[1748917466312,6.2063,161.03,161.02,0.04351764]
[1748917466696,0.04689381,161.06,161.02,0.04351764]
[1748917466898,6.206,161.04,161.02,0.04351764]
[1748917468999,6.2057,161.05,161.02,0.04351764]
[1748917469896,0.04689381,161.06,161.03,13.27819854]
[1748917470097,0.04689381,161.06,161.05,7.07219854]
[1748917476715,6.25219381,161.06,161.04,7.07219854]
[1748917476910,0.04689381,161.06,161.04,7.07219854]
[1748917477819,0.04689381,161.06,161.04,13.27809854]
[1748917478519,0.04689381,161.06,161.04,7.07219854]
[1748917479017,6.25209381,161.06,161.04,7.07219854]
[1748917479219,0.04689381,161.06,161.04,13.27809854]
[1748917479419,0.04689381,161.06,161.04,7.07219854]
[1748917479615,0.04689381,161.06,161.04,13.27789854]
[1748917480913,0.04689381,161.06,161.04,7.07219854]
[1748917482116,0.04689381,161.06,161.04,13.27809854]
[1748917482315,0.04689381,161.06,161.04,7.07219854]
[1748917482616,42.04229854,161.15,161.05,32.98]
[1748917482810,34.9701,161.15,161.09,7.07219854]
[1748917483012,6.2031,161.12,161.09,7.07219854]
[1748917483210,1.9901,161.15,161.09,40.05219854]
[1748917483413,0.04651743,161.14,161.1,0.04500661]
[1748917483608,6.24871743,161.14,161.11,7.07219854]
[1748917484824,6.24871743,161.14,161.11,13.27539854]
[1748917485018,0.04651743,161.14,161.11,13.27539854]
[1748917485218,0.04651743,161.14,161.11,7.07219854]
[1748917485418,6.2027,161.13,161.11,7.07219854]
[1748917486124,6.2032,161.11,161.1,0.04500661]
[1748917486311,13.27539854,161.11,161.1,0.04500661]
[1748917488517,6.2032,161.11,161.1,0.04500661]
[1748917492428,6.203,161.12,161.1,0.04500661]
[1748917494015,0.04651743,161.14,161.1,40.09720515]
[1748917494731,0.04651743,161.14,161.11,6.203]
[1748917495226,0.04651743,161.14,161.12,7.07219854]
[1748917496730,6.24861743,161.14,161.11,13.27519854]
[1748917497829,7.07219854,161.12,161.06,5.76122844]
[1748917498035,7.07219854,161.12,161.03,7.07219854]
[1748917498331,7.07219854,161.08,161.02,32.98]
[1748917498822,0.04634958,161.07,161.03,0.04456679]
[1748917499329,6.2059,161.04,161.03,0.04456679]
[1748917500335,0.04634958,161.07,161.03,0.04456679]
[1748917500529,0.04634958,161.07,161.03,11.60366911]
[1748917501043,6.2054,161.06,161.03,11.60366911]
[1748917501225,0.04634958,161.07,161.03,11.60366911]
[1748917501629,6.2052,161.06,161.03,11.60366911]
[1748917502531,6.2056,161.05,161.03,0.04456679]
[1748917502734,0.04634958,161.07,161.03,11.60366911]
[1748917503829,6.25124958,161.07,161.03,11.60366911]
[1748917504134,0.04634958,161.07,161.03,0.04456679]
[1748917504334,6.2059,161.04,161.03,0.04456679]
[1748917505433,11.55910232,161.06,160.97,35.0431]
[1748917505733,1.9932,161.07,160.98,11.55910232]
[1748917506137,1.9932,161.07,160.98,17.76710232]
[1748917506431,0.04705846,161.04,161.01,0.04309986]
[1748917506626,0.04705846,161.04,161.01,32.96309986]
[1748917507032,6.2067,161.02,161.01,32.96309986]
[1748917507238,0.04705846,161.04,161.01,32.96309986]
[1748917507738,6.2066,161.03,161.01,32.96309986]
[1748917509531,6.25305846,161.04,161.01,32.96309986]
[1748917509732,0.04705846,161.04,161.01,32.96309986]
[1748917510438,6.25325846,161.04,161.01,32.96309986]
[1748917510937,6.25325846,161.04,161.01,39.17009986]
[1748917511436,0.04705846,161.04,161.01,39.17009986]
[1748917511734,0.04705846,161.04,161.02,11.55910232]
[1748917512631,2.1802,161.11,161.02,11.55910232]
[1748917512827,2.1802,161.11,161.05,11.55910232]
[1748917513026,4.033,161.14,161.06,32.92]
[1748917513236,4.033,161.14,161.07,6.2047]
[1748917513738,4.033,161.14,161.09,0.04750456]
[1748917513739,6.2036,161.11,161.09,0.04750456]
[1748917513938,0.04087128,161.12,161.09,0.04750456]
[1748917514743,6.2036,161.1,161.09,0.04750456]
[1748917514941,0.04087128,161.12,161.09,0.04750456]
[1748917515537,6.2033,161.11,161.09,0.04750456]
[1748917515741,0.04087128,161.12,161.09,0.04750456]
[1748917516041,0.04087128,161.12,161.11,11.55910232]
[1748917516642,6.201,161.17,161.11,11.55910232]
[1748917516836,6.201,161.17,161.13,11.55910232]
[1748917517040,6.201,161.17,161.14,32.92]
[1748917517641,6.2437443,161.17,161.14,32.95976586]
[1748917518143,6.2014,161.16,161.14,32.95976586]
[1748917518742,6.2017,161.15,161.14,32.95976586]
[1748917519843,6.2014,161.16,161.14,32.95976586]
[1748917520042,0.0427443,161.17,161.14,32.95976586]
[1748917520444,6.2013,161.16,161.14,32.95976586]
[1748917520643,0.0427443,161.17,161.14,32.95976586]
[1748917521143,6.2016,161.16,161.14,40.04318337]
[1748917521547,0.0427443,161.17,161.14,40.04318337]
[1748917521841,0.0427443,161.17,161.16,7.08341751]
[1748917522149,6.2436443,161.17,161.16,7.08341751]
[1748917523345,0.0427443,161.17,161.16,7.08341751]
[1748917523747,7.08341751,161.24,161.16,7.08341751]
[1748917523948,7.08341751,161.21,161.14,32.92]
[1748917524540,6.2017,161.15,161.14,32.92]
[1748917525146,6.2431465,161.16,161.14,32.92]
[1748917525345,0.0416465,161.16,161.14,32.92]
[1748917525948,0.0416465,161.16,161.14,44.46440478]
[1748917527155,6.2429465,161.16,161.14,44.46440478]
[1748917527653,0.0416465,161.16,161.14,44.46440478]
[1748917531059,6.2429465,161.16,161.14,44.46440478]
[1748917536167,6.2017,161.15,161.14,32.92]
[1748917536357,0.0416465,161.16,161.13,0.04120409]
[1748917536663,2.2110465,161.16,161.13,0.04120409]
[1748917536862,6.2029,161.12,161.11,32.86]
[1748917537063,11.54440478,161.15,161.08,32.86]
[1748917537463,6.4576,161.16,161.08,32.86]
[1748917537464,11.54440478,161.13,161.08,32.86]
[1748917537766,0.04061898,161.12,161.09,0.04176574]
[1748917539062,6.2036,161.1,161.09,0.04176574]
[1748917539865,11.54440478,161.11,161.05,32.86]
[1748917540760,6.2052,161.06,161.05,32.86]
[1748917541456,6.2052,161.06,161.04,0.04261358]
[1748917541656,0.04594067,161.07,161.04,0.04261358]
[1748917542360,6.25084067,161.07,161.04,6.24841358]
[1748917542563,6.25084067,161.07,161.04,39.10841358]
[1748917544364,6.25084067,161.07,161.04,32.90261358]
[1748917545368,6.25084067,161.07,161.04,39.99458927]
[1748917546165,6.2052,161.06,161.04,39.99458927]
[1748917546369,0.04594067,161.07,161.04,32.90261358]
[1748917547365,6.2055,161.05,161.04,32.90261358]
[1748917553160,0.04594067,161.07,161.04,32.90261358]
[1748917553368,6.2052,161.06,161.04,32.90261358]
[1748917553867,0.04594067,161.07,161.04,39.10841358]
[1748917554077,32.88,161.15,161.05,7.09197569]
[1748917554267,6.2044,161.08,161.07,7.09197569]
[1748917554465,6.2044,161.08,161.05,7.09197569]
[1748917555067,6.2044,161.08,161.05,7.13879778]
[1748917555273,6.24715735,161.08,161.05,7.13879778]
[1748917555666,6.2049,161.07,161.05,7.13879778]
[1748917555864,0.04275735,161.08,161.05,0.04682209]
[1748917556264,6.2052,161.06,161.05,0.04682209]
[1748917558572,6.2052,161.06,161.05,0.00885567]
[1748917565176,6.2067,161.02,161.01,32.82]
[1748917565379,7.09197569,161.04,160.98,32.82]
[1748917565975,6.2079,160.99,160.98,32.82]
[1748917567082,6.2079,160.99,160.97,0.04569755]
[1748917567777,6.2082,160.98,160.97,0.04569755]
[1748917568075,0.04103897,161.0,160.97,0.04569755]
[1748917568281,6.2082,160.99,160.97,0.04569755]
[1748917568484,0.04103897,161.0,160.97,0.04569755]
[1748917568992,6.24873897,161.0,160.97,0.04569755]
[1748917569983,0.04103897,161.0,160.97,0.04569755]
[1748917570179,0.04103897,161.0,160.99,6.2079]
[1748917570391,4.086,161.07,160.99,32.84]
[1748917570584,6.2056,161.05,161.02,7.09197569]
[1748917570980,4.086,161.07,161.02,7.09197569]
[1748917571288,6.2059,161.04,161.03,0.04731278]
[1748917572092,0.03938175,161.06,161.03,0.04731278]
[1748917572597,6.24478175,161.06,161.03,0.04731278]
[1748917572985,0.03938175,161.06,161.03,0.04731278]
[1748917573190,0.03938175,161.06,161.04,13.29787569]
[1748917575097,0.03938175,161.06,161.05,6.2055]
[1748917577996,9.18747569,161.14,161.07,6.2045]
[1748917578201,6.2035,161.11,161.07,13.29647569]
[1748917578395,2.0955,161.14,161.07,46.13647569]
[1748917578892,6.2035,161.11,161.09,0.04258055]
[1748917579092,0.04278668,161.12,161.09,0.00805839]
[1748917579295,6.2036,161.1,161.09,0.00805839]
[1748917588205,6.2055,161.05,161.04,32.82]
[1748917592006,6.2059,161.04,161.03,0.04689078]
[1748917595618,0.04020197,161.06,161.03,0.04689078]
[1748917595619,6.2056,161.05,161.03,0.04689078]
[1748917595809,0.04020197,161.06,161.03,0.04689078]
[1748917596212,6.24560197,161.06,161.03,6.25319078]
[1748917596411,0.04020197,161.06,161.03,0.04689078]
[1748917596817,6.2059,161.04,161.03,0.04689078]
[1748917597515,0.04020197,161.06,161.03,0.04689078]
[1748917597914,6.2057,161.05,161.03,0.04689078]
[1748917598715,6.2059,161.04,161.03,0.04689078]
[1748917601525,0.04020197,161.06,161.03,0.04689078]
[1748917602613,6.2058,161.05,161.03,0.04689078]
[1748917604325,6.2059,161.04,161.03,0.04689078]
[1748917609622,6.2059,161.04,161.03,0.01055637]
[1748917610629,7.13217766,161.06,160.98,32.76]
[1748917610630,6.2079,160.99,160.98,32.76]
[1748917611828,6.24960294,161.0,160.98,32.76]
[1748917612033,6.2076,161.0,160.98,32.76]
[1748917612226,6.25187339,161.01,160.98,38.9679]
[1748917613026,6.2075,161.0,160.98,32.76]
[1748917613732,6.2079,160.99,160.98,32.76]
[1748917614430,6.2077,161.0,160.98,32.76]
[1748917619140,6.25167339,161.01,160.98,38.9681]
[1748917621343,7.94653311,161.08,160.99,7.09197569]
[1748917621641,9.27057569,161.08,161.0,7.09197569]
[1748917621941,6.2066,161.03,160.99,8.3078]
[1748917622137,7.09197569,161.06,160.99,8.3078]
[1748917622335,7.09197569,161.06,160.98,46.05997569]
[1748917622535,0.04406205,161.04,161.01,0.04679935]
[1748917623835,0.04406205,161.04,161.02,6.2064]
[1748917624037,0.04406205,161.04,161.03,7.09197569]
[1748917624739,0.04406205,161.04,161.03,13.29827569]
[1748917625144,0.04406205,161.04,161.02,46.07857569]
[1748917625845,0.04406205,161.04,161.03,6.2063]
[1748917628252,0.04406205,161.04,161.02,32.78]
[1748917628551,0.04406205,161.04,161.02,39.87197569]
[1748917628943,0.04406205,161.04,161.02,46.07857569]
[1748917629550,0.04406205,161.04,161.03,6.2063]
[1748917629946,0.04406205,161.04,161.02,39.87197569]
[1748917631151,0.04406205,161.04,161.02,46.07857569]
[1748917633351,0.04406205,161.04,161.02,32.78]
[1748917633945,6.2067,161.02,161.01,0.04679935]
[1748917637952,7.09197569,161.02,160.96,32.7]
[1748917638551,6.2086,160.97,160.96,32.7]
[1748917651161,6.209,160.96,160.95,0.04507273]
[1748917653059,6.209,160.96,160.95,0.01014321]
[1748917653760,6.2109,160.91,160.9,32.72]
[1748917653960,2.1426,160.97,160.9,32.72]
[1748917654261,6.2093,160.96,160.93,7.09197569]
[1748917654469,34.877,160.99,160.93,7.09197569]
[1748917654769,6.2094,160.95,160.94,0.03357335]
[1748917654966,0.04555601,160.98,160.94,0.03357335]
[1748917655264,6.2087,160.97,160.94,0.03357335]
[1748917655465,0.04555601,160.98,160.94,0.03357335]
[1748917656563,6.2087,160.97,160.94,6.24327335]
[1748917657560,0.04555601,160.98,160.94,0.03357335]
[1748917658259,6.2088,160.97,160.94,6.24337335]
[1748917659466,6.2088,160.97,160.94,0.03357335]
[1748917659665,6.2091,160.96,160.94,0.03357335]
[1748917660371,0.04555601,160.98,160.94,0.03357335]
[1748917662069,6.2089,160.97,160.94,0.03357335]
[1748917662666,6.2091,160.96,160.94,0.03357335]
[1748917666165,6.2094,160.95,160.94,0.03357335]
[1748917667463,6.2092,160.96,160.94,0.03357335]
[1748917667663,0.04555601,160.98,160.94,0.03357335]
[1748917669276,6.2094,160.95,160.94,0.03357335]
[1748917670667,0.04555601,160.98,160.94,0.03357335]
[1748917671374,6.2093,160.96,160.94,0.03357335]
[1748917672874,0.04555601,160.98,160.94,7.12554904]
[1748917674379,6.2089,160.97,160.94,13.33504904]
[1748917674573,0.04555601,160.98,160.96,7.09197569]
[1748917674875,0.04555601,160.98,160.96,13.30077569]
[1748917675071,0.04555601,160.98,160.96,7.09197569]
[1748917675473,0.04555601,160.98,160.97,6.2086]
[1748917676068,0.04555601,160.98,160.97,13.30057569]
[1748917677473,0.04555601,160.98,160.94,38.46161883]
[1748917677779,0.04555601,160.98,160.95,7.09197569]
[1748917678177,6.2089,160.97,160.95,7.09197569]
[1748917678580,0.04555601,160.98,160.95,7.09197569]
[1748917678581,6.209,160.96,160.95,7.09197569]
[1748917678782,0.04555601,160.98,160.94,32.67357335]
[1748917679176,6.2094,160.95,160.94,32.67357335]
[1748917679773,6.2094,160.95,160.94,0.03357335]
[1748917680179,6.2091,160.96,160.94,0.03357335]
[1748917680484,0.04555601,160.98,160.94,0.03357335]
[1748917680686,6.2094,160.95,160.94,0.03357335]
[1748917681186,6.2094,160.95,160.94,7.335e-05]
[1748917681481,6.2111,160.91,160.89,7.09197569]
[1748917681779,7.09197569,160.96,160.88,32.64]
[1748917681985,7.09197569,160.94,160.87,5.80169476]
[1748917682185,18.18628806,160.98,160.86,9.476e-05]
[1748917682186,7.09197569,160.9,160.86,9.476e-05]
[1748917682585,6.2125,160.87,160.86,9.476e-05]
[1748917683087,6.2125,160.87,160.84,7.09197569]
[1748917683388,6.25636082,160.87,160.84,7.09197569]
[1748917684590,6.25636082,160.87,160.83,13.30597569]
[1748917684898,0.04386082,160.87,160.83,7.09197569]
[1748917685078,0.04386082,160.87,160.85,7.09197569]
[1748917685276,2.0244,160.92,160.85,7.09197569]
[1748917685482,6.2108,160.92,160.89,7.09197569]
[1748917685982,6.211,160.91,160.89,7.09197569]
[1748917686588,6.25700189,160.92,160.89,7.09197569]
[1748917687484,0.04640189,160.92,160.89,13.30357569]
[1748917688089,0.04640189,160.92,160.89,13.30367569]
[1748917688488,0.04640189,160.92,160.89,7.09197569]
[1748917688690,0.04640189,160.92,160.88,32.64353552]
[1748917688691,0.04640189,160.92,160.91,7.09197569]
[1748917688887,0.04640189,160.92,160.88,32.64353552]
[1748917689079,0.04640189,160.92,160.9,7.09197569]
[1748917690386,0.04640189,160.92,160.88,39.73551121]
[1748917690788,0.04640189,160.92,160.88,45.94761121]
[1748917691093,0.04640189,160.92,160.9,7.09197569]
[1748917691889,0.04640189,160.92,160.89,7.09197569]
[1748917692286,6.25720189,160.92,160.89,7.09197569]
[1748917693491,6.211,160.91,160.89,7.09197569]
[1748917693690,0.04640189,160.92,160.89,7.09197569]
[1748917695994,0.04640189,160.92,160.89,13.30367569]
[1748917697394,0.04640189,160.92,160.9,6.2113]
[1748917697790,0.04640189,160.92,160.89,7.09197569]
[1748917697991,0.04640189,160.92,160.89,6.2114]
[1748917698198,0.04640189,160.92,160.89,13.30337569]
[1748917700100,6.25700189,160.92,160.89,13.30337569]
[1748917700995,0.04640189,160.92,160.89,13.30337569]
[1748917702299,6.25710189,160.92,160.89,13.30337569]
[1748917704697,6.2112,160.91,160.88,38.85553552]
[1748917704900,0.04640189,160.92,160.88,39.73551121]
[1748917705100,6.25720189,160.92,160.89,6.2117]
[1748917706101,6.25720189,160.92,160.88,45.94741121]
[1748917707496,6.25720189,160.92,160.89,6.2116]
[1748917713509,6.211,160.91,160.88,39.73551121]
[1748917713909,0.04640189,160.92,160.88,45.94741121]
[1748917714511,6.2112,160.91,160.88,45.94741121]
[1748917715312,0.04640189,160.92,160.88,45.94741121]
[1748917715313,0.04640189,160.92,160.9,7.09197569]
[1748917715607,0.04640189,160.92,160.9,39.69197569]
[1748917716809,6.25700189,160.92,160.9,39.69197569]
[1748917717505,0.04640189,160.92,160.9,45.90317569]
[1748917720404,0.04640189,160.92,160.9,39.69197569]
[1748917720600,4.1917,160.99,160.9,39.69197569]
[1748917720808,5.7609837,161.01,160.94,7.09197569]
[1748917721109,6.2085,160.98,160.94,45.84147569]
[1748917721604,6.24902399,160.98,160.95,6.2094]
[1748917722001,0.04052399,160.98,160.96,7.09197569]
[1748917722206,0.04052399,160.98,160.96,13.30077569]
[1748917723606,0.04052399,160.98,160.96,7.09197569]
[1748917724609,0.04052399,160.98,160.97,7.09197569]
[1748917724806,6.24872399,160.98,160.97,7.09197569]
[1748917725912,6.24872399,160.98,160.96,32.54]
[1748917726213,6.24872399,160.98,160.96,39.63197569]
[1748917727012,0.04052399,160.98,160.96,39.63197569]
[1748917728112,6.24882399,160.98,160.96,39.63197569]
[1748917729007,6.24882399,160.98,160.96,32.54]
[1748917729204,6.2086,160.97,160.96,39.63197569]
[1748917730107,0.04052399,160.98,160.96,39.63197569]
[1748917730512,6.2086,160.97,160.96,39.63197569]
[1748917732820,6.2094,160.95,160.94,0.03965802]
[1748917733318,6.2089,160.97,160.94,6.24915802]
[1748917733517,0.04052399,160.98,160.94,0.03965802]
[1748917734916,6.2093,160.96,160.94,0.03965802]
[1748917735519,6.2094,160.95,160.94,0.03965802]
[1748917741125,6.2109,160.91,160.9,7.09197569]
[1748917741721,7.09197569,160.96,160.89,32.54]
[1748917742121,6.2113,160.9,160.89,32.54]
[1748917742322,7.13379737,160.94,160.86,32.54]
[1748917742523,7.13379737,160.94,160.88,0.04153337]
[1748917742524,0.03995356,160.92,160.88,0.04153337]
[1748917742726,6.2117,160.89,160.88,0.04153337]
[1748917743722,0.03995356,160.92,160.88,7.13350906]
[1748917743927,0.03995356,160.92,160.9,7.09197569]
[1748917744122,0.03995356,160.92,160.91,6.2109]
[1748917747019,0.03995356,160.92,160.9,38.7512]
[1748917747227,0.03995356,160.92,160.91,7.09197569]
[1748917750025,0.03995356,160.92,160.91,13.30287569]
[1748917750225,0.03995356,160.92,160.91,7.09197569]
[1748917751231,0.03995356,160.92,160.91,13.30287569]
[1748917751432,0.03995356,160.92,160.91,7.09197569]
[1748917752620,0.03995356,160.92,160.91,13.30287569]
[1748917753028,0.03995356,160.92,160.91,7.09197569]
[1748917756125,0.03995356,160.92,160.91,13.30287569]
[1748917759537,0.03995356,160.92,160.91,6.2109]
[1748917759739,0.03995356,160.92,160.91,7.09197569]
[1748917761336,6.25045356,160.92,160.91,7.09197569]
[1748917761536,0.03995356,160.92,160.91,7.09197569]
[1748917765637,6.25065356,160.92,160.9,32.54]
[1748917765839,6.25065356,160.92,160.91,7.09197569]
[1748917766440,0.03995356,160.92,160.91,7.09197569]
[1748917769048,0.03995356,160.92,160.9,38.7512]
[1748917769340,0.03995356,160.92,160.9,32.54]
[1748917770746,6.2109,160.91,160.9,32.54]
[1748917771748,0.03995356,160.92,160.88,0.04153337]
[1748917771749,6.2117,160.89,160.88,0.04153337]
[1748917774258,0.03995356,160.92,160.88,0.04153337]
[1748917774259,6.2115,160.9,160.88,0.04153337]
[1748917775141,0.03995356,160.92,160.88,0.04153337]
[1748917776349,6.2117,160.89,160.88,0.04153337]
[1748917777150,7.09197569,160.91,160.82,7.09197569]
[1748917777355,2.0139,160.9,160.82,7.09197569]
[1748917777744,6.214,160.83,160.82,7.09197569]
[1748917778347,6.2144,160.82,160.81,34.97397415]
[1748917778551,0.03958342,160.84,160.81,34.97397415]
[1748917779151,6.2143,160.83,160.81,34.97397415]
[1748917779455,0.03958342,160.84,160.81,34.97397415]
[1748917779656,0.03958342,160.84,160.81,42.06594984]
[1748917780048,0.03958342,160.84,160.81,34.97397415]
[1748917780250,6.214,160.83,160.81,42.06594984]
[1748917780555,0.03958342,160.84,160.81,42.06594984]
[1748917780751,0.03958342,160.84,160.81,34.97397415]
[1748917780957,0.03958342,160.84,160.81,42.06594984]
[1748917781456,0.03958342,160.84,160.82,6.2141]
[1748917783861,6.25328342,160.84,160.81,34.97397415]
[1748917784157,0.03958342,160.84,160.81,34.97397415]
[1748917784552,0.03958342,160.84,160.82,7.09197569]
[1748917784972,0.03958342,160.84,160.83,6.214]
[1748917785259,0.03958342,160.84,160.82,7.09197569]
[1748917786255,0.03958342,160.84,160.82,13.30637569]
[1748917786456,0.03958342,160.84,160.82,6.2144]
[1748917786657,0.03958342,160.84,160.82,13.30637569]
[1748917788560,6.2141,160.83,160.81,2.55397415]
[1748917790557,6.2144,160.82,160.81,2.55397415]
[1748917791361,6.2141,160.83,160.81,2.55397415]
[1748917792254,6.214,160.83,160.81,2.55397415]
[1748917793066,6.25328342,160.84,160.81,2.55397415]
[1748917793860,6.214,160.83,160.81,2.55397415]
[1748917795663,6.25348342,160.84,160.81,8.76867415]
[1748917796060,0.03958342,160.84,160.81,2.55397415]
[1748917796266,0.03958342,160.84,160.82,7.09197569]
[1748917796967,0.03958342,160.84,160.82,13.30637569]
[1748917797771,0.03958342,160.84,160.83,6.214]
[1748917800395,2.0829,160.92,160.83,7.09197569]
[1748917800579,2.0829,160.92,160.87,7.09197569]
[1748917800780,2.0829,160.92,160.87,13.30417569]
[1748917801173,6.25125813,160.91,160.88,0.03963872]
[1748917801483,0.04025813,160.91,160.88,0.03963872]
[1748917802080,6.2115,160.9,160.88,0.03963872]
[1748917802481,0.04025813,160.91,160.88,0.03963872]
[1748917802684,6.2113,160.9,160.88,0.03963872]
[1748917805779,0.04025813,160.91,160.88,7.13161441]
[1748917805985,0.04025813,160.91,160.9,7.09197569]
[1748917806292,2.109,160.96,160.9,7.09197569]
[1748917807182,2.109,160.96,160.92,7.09197569]
[1748917807388,8.35873366,160.96,160.92,45.72879273]
[1748917807582,6.24973366,160.96,160.92,45.72879273]
[1748917808084,0.04063366,160.96,160.94,7.09197569]
[1748917808382,0.04063366,160.96,160.94,13.30147569]
[1748917808587,0.04063366,160.96,160.94,7.09197569]
[1748917809893,2.155,161.0,160.94,7.09197569]
[1748917809894,4.2471,161.04,160.94,7.09197569]
[1748917810189,6.2069,161.02,160.99,7.09197569]
[1748917810394,6.2069,161.02,160.99,39.47197569]
[1748917810786,6.25178188,161.02,160.99,39.51152527]
[1748917811089,6.2071,161.01,160.99,39.51152527]
[1748917812197,6.25168188,161.02,160.99,39.51152527]
[1748917812588,0.04488188,161.02,161.01,7.09197569]
[1748917813090,0.04488188,161.02,160.99,39.51152527]
[1748917813390,6.25168188,161.02,160.99,39.51152527]
[1748917813590,0.04488188,161.02,160.99,39.51152527]
[1748917814187,0.04488188,161.02,160.99,45.71912527]
[1748917814383,0.04488188,161.02,160.99,32.41954958]
[1748917814592,0.04488188,161.02,160.99,0.03954958]
[1748917814887,6.2074,161.0,160.99,0.03954958]
[1748917824790,6.25198188,161.02,160.99,0.03954958]
[1748917824997,0.04488188,161.02,160.99,7.13152527]
[1748917826301,0.04488188,161.02,160.99,13.33902527]
[1748917826803,0.04488188,161.02,161.01,7.09197569]
[1748917827898,0.04488188,161.02,160.99,0.03954958]
[1748917829405,6.2074,161.0,160.99,0.03954958]
[1748917829898,6.2072,161.01,160.99,0.03954958]
[1748917830296,7.09197569,161.0,160.97,32.38]
[1748917830603,6.2093,160.96,160.94,32.36]
[1748917830797,7.09197569,161.0,160.94,32.36]
[1748917831304,6.2092,160.96,160.95,0.04396042]
[1748917833096,0.04312197,160.99,160.95,0.04396042]
[1748917834213,6.2086,160.97,160.95,0.04396042]
[1748917835908,6.2086,160.97,160.95,0.00985454]
[1748917838311,0.04312197,160.99,160.95,0.00985454]
[1748917838711,0.04312197,160.99,160.96,13.30097569]
[1748917838712,6.25122197,160.99,160.96,13.30097569]
[1748917839210,0.04312197,160.99,160.97,6.2085]
[1748917839618,0.04312197,160.99,160.98,32.32]
[1748917840303,0.04312197,160.99,160.98,38.5282]
[1748917840507,0.04312197,160.99,160.98,45.62017569]
[1748917841517,0.04312197,160.99,160.98,39.41197569]
[1748917844210,0.04312197,160.99,160.98,32.32]
[1748917844718,0.04312197,160.99,160.95,32.32985454]
[1748917845614,6.209,160.96,160.95,32.32985454]
[1748917845919,6.209,160.96,160.95,27.67351455]
[1748917846415,7.09197569,160.98,160.92,32.32]
[1748917847118,6.2101,160.93,160.89,41.44137569]
[1748917847307,6.25256076,160.93,160.89,41.4865303]
[1748917848017,6.25256076,160.93,160.9,6.2113]
[1748917848324,0.04246076,160.93,160.9,7.09197569]
[1748917849224,0.04246076,160.93,160.92,7.09197569]
[1748917850323,0.04246076,160.93,160.9,7.09197569]
[1748917851126,6.2109,160.91,160.9,7.09197569]
[1748917852628,6.2107,160.92,160.9,7.09197569]
[1748917853427,6.2109,160.91,160.9,7.09197569]
[1748917853734,0.04246076,160.93,160.9,7.09197569]
[1748917854026,0.04246076,160.93,160.92,7.09197569]
[1748917854224,0.04246076,160.93,160.92,13.30247569]
[1748917855516,2.0717,161.02,160.92,7.09197569]
[1748917855717,2.0717,161.02,160.95,7.09197569]
[1748917856127,2.0717,161.02,160.94,32.32]
[1748917856128,1.9927,161.03,160.97,7.09197569]
[1748917856519,0.03913566,161.02,160.98,0.04127907]
[1748917857021,6.2079,160.99,160.98,0.04127907]
[1748917861021,6.2079,160.99,160.98,0.00831405]
[1748917868227,6.2075,161.0,160.98,0.00831405]
[1748917868631,0.03913566,161.02,160.98,0.00831405]
[1748917868828,6.2078,160.99,160.98,0.00831405]
[1748917871127,7.09197569,161.01,160.94,32.32]
[1748917871331,7.09197569,160.99,160.94,32.32]
[1748917872025,0.0466755,160.98,160.95,0.04101951]
[1748917872725,6.209,160.96,160.95,0.04101951]
[1748917873634,6.2087,160.97,160.95,0.04101951]
[1748917873834,0.0466755,160.98,160.95,0.04101951]
[1748917874032,6.209,160.96,160.95,0.04101951]
[1748917875034,6.2105,160.92,160.91,32.28]
[1748917877233,6.25596779,160.93,160.91,39.37197569]
[1748917879931,6.2105,160.92,160.91,39.37197569]
[1748917880137,6.2105,160.92,160.91,32.28]
[1748917880731,6.25606779,160.93,160.91,32.28]
[1748917881037,0.04576779,160.93,160.91,32.28]
[1748917881839,6.25606779,160.93,160.91,32.28]
[1748917886933,0.04576779,160.93,160.92,7.09197569]
[1748917887538,0.04576779,160.93,160.91,38.4909]